{"text_format":"1","workbook":"xlsx","n_sheets":4,"sheets":["○x=△【整数解】","○x=△【分数解】","一般型【整数解】","一般型【分数解】"],"not_rendered":{"charts":0,"images":0,"macros":1,"external_links":0,"defined_names":4,"comments":0,"pivot_tables":0},"unopened":[],"bounds":{"document_bytes":16777216,"sheet_cells":100000,"rows_first":2000,"rows_last":500,"rows_between":2000,"halvings":0,"cell_chars":16384,"cell_head_chars":4096},"cells_cut":0,"cells_raw":0,"read":"whole","date_system":"1900"}

{"sheet":"○x=△【整数解】","index":0,"n_rows":28,"n_cols":79,"rows_kept":28,"cut":false,"hidden":false,"merged":[[8,56,19,68],[20,56,23,68],[13,17,14,21],[15,17,16,21],[5,29,6,35],[5,37,6,38],[5,39,6,40],[5,42,6,47],[4,42,4,47],[13,24,14,25],[15,24,16,25],[13,26,14,33],[15,26,16,27],[15,28,16,33],[9,6,10,9],[9,12,10,13],[9,14,10,15],[9,17,10,22],[13,6,14,9],[14,12,15,13],[14,14,15,15],[1,4,2,6],[1,7,2,25],[4,2,4,5],[5,2,6,5],[5,8,6,11],[5,12,6,13],[5,14,6,15],[5,17,6,22]]}
[]
[null,null,null,null,1,null,null,"基本の１次方程式①"]
[]
[]
[null,null,"問題番号"]
[null,null,1,null,null,null,null,null,{"$f":"ASC(VLOOKUP(C6,$BV$9:$CA$28,2)&VLOOKUP(C6,$BV$9:$CA$28,3))","v":"2"},null,null,null,"x",null,"=",null,null,{"$f":"VLOOKUP(C6,$BV$9:$CA$28,6)","v":2},null,null,null,null,null,null,null,null,null,null,null,"解の入力",null,null,null,null,null,null,null,"x",null,"="]
[]
[]
[null,null,null,null,null,null,null,null,null,null,null,null,null,null,null,null,null,null,null,null,null,null,null,null,null,null,null,null,null,null,null,null,null,null,null,null,null,null,null,null,null,null,null,null,null,null,null,null,null,null,null,null,null,null,null,null,{"$f":"IF(ASC(AQ6)=R10,\"○\",\"×\")","v":"×"},null,null,null,null,null,null,null,null,null,null,null,null,null,null,null,null,1,null,2,null,{"$f":"2*MOD(TODAY(),3)+1","v":1},{"$f":"ASC(BW9&BX9)*ASC(BY9&BZ9)","v":2}]
[null,null,null,null,null,null,"解答",null,null,null,null,null,"x",null,"=",null,null,{"$f":"ASC(VLOOKUP(C6,$BV$9:$CA$28,4)&VLOOKUP(C6,$BV$9:$CA$28,5))","v":"1"},null,null,null,null,null,null,null,null,null,null,null,null,null,null,null,null,null,null,null,null,null,null,null,null,null,null,null,null,null,null,null,null,null,null,null,null,null,null,null,null,null,null,null,null,null,null,null,null,null,null,null,null,null,null,null,2,null,3,null,{"$f":"MOD(TODAY(),2)+2","v":3},{"$f":"ASC(BW10&BX10)*ASC(BY10&BZ10)","v":9}]
[null,null,null,null,null,null,null,null,null,null,null,null,null,null,null,null,null,null,null,null,null,null,null,null,null,null,null,null,null,null,null,null,null,null,null,null,null,null,null,null,null,null,null,null,null,null,null,null,null,null,null,null,null,null,null,null,null,null,null,null,null,null,null,null,null,null,null,null,null,null,null,null,null,3,"-",4,"-",{"$f":"MOD(TODAY(),2)+1","v":2},8]
[null,null,null,null,null,null,null,null,null,null,null,null,null,null,null,null,null,null,null,null,null,null,null,null,null,null,null,null,null,null,null,null,null,null,null,null,null,null,null,null,null,null,null,null,null,null,null,null,null,null,null,null,null,null,null,null,null,null,null,null,null,null,null,null,null,null,null,null,null,null,null,null,null,4,"-",2,"-",{"$f":"3*MOD(TODAY(),3)+1","v":1},2]
[null,null,null,null,null,null,null,null,null,null,null,null,null,null,null,null,null,null,null,null,null,null,null,null,null,null,null,null,null,null,null,null,null,null,null,null,null,null,null,null,null,null,null,null,null,null,null,null,null,null,null,null,null,null,null,null,null,null,null,null,null,null,null,null,null,null,null,null,null,null,null,null,null,5,null,3,"-",{"$f":"MOD(TODAY(),2)+2","v":3},-9]
[null,null,null,null,null,null,"解説",null,null,null,null,null,null,null,null,null,null,{"$f":"R6","v":2},null,null,null,null,null,null,"←",null,"右辺の数",null,null,null,null,null,null,null,null,null,null,null,null,null,null,null,null,null,null,null,null,null,null,null,null,null,null,null,null,null,null,null,null,null,null,null,null,null,null,null,null,null,null,null,null,null,null,6,null,4,"-",{"$f":"MOD(TODAY(),3)+2","v":2},-8]
[null,null,null,null,null,null,null,null,null,null,null,null,"x",null,"=",null,null,null,null,null,null,null,null,null,null,null,null,null,null,null,null,null,null,null,null,null,null,null,null,null,null,null,null,null,null,null,null,null,null,null,null,null,null,null,null,null,null,null,null,null,null,null,null,null,null,null,null,null,null,null,null,null,null,7,"-",5,null,{"$f":"2*BZ13+1","v":7},-35]
[null,null,null,null,null,null,null,null,null,null,null,null,null,null,null,null,null,{"$f":"I6","v":"2"},null,null,null,null,null,null,"←",null,"x",null,"の係数",null,null,null,null,null,null,null,null,null,null,null,null,null,null,null,null,null,null,null,null,null,null,null,null,null,null,null,null,null,null,null,null,null,null,null,null,null,null,null,null,null,null,null,null,8,"-",4,null,{"$f":"BZ13+BZ11","v":5},-20]
[null,null,null,null,null,null,null,null,null,null,null,null,null,null,null,null,null,null,null,null,null,null,null,null,null,null,null,null,null,null,null,null,null,null,null,null,null,null,null,null,null,null,null,null,null,null,null,null,null,null,null,null,null,null,null,null,null,null,null,null,null,null,null,null,null,null,null,null,null,null,null,null,null,9,null,6,null,{"$f":"MOD(TODAY(),2)+1","v":2},{"$f":"ASC(BW17&BX17)*ASC(BY17&BZ17)","v":12}]
[null,null,null,null,null,null,null,null,null,null,null,null,null,null,null,null,null,null,null,null,null,null,null,null,null,null,null,null,null,null,null,null,null,null,null,null,null,null,null,null,null,null,null,null,null,null,null,null,null,null,null,null,null,null,null,null,null,null,null,null,null,null,null,null,null,null,null,null,null,null,null,null,null,10,"-",7,"-",{"$f":"MOD(TODAY(),3)+1","v":1},7]
[null,null,null,null,null,null,null,null,null,null,null,null,null,null,null,null,null,null,null,null,null,null,null,null,null,null,null,null,null,null,null,null,null,null,null,null,null,null,null,null,null,null,null,null,null,null,null,null,null,null,null,null,null,null,null,null,null,null,null,null,null,null,null,null,null,null,null,null,null,null,null,null,null,11,null,8,"-",{"$f":"MOD(TODAY(),2)+2","v":3},-24]
[null,null,null,null,null,null,null,null,null,null,null,null,null,null,null,null,null,null,null,null,null,null,null,null,null,null,null,null,null,null,null,null,null,null,null,null,null,null,null,null,null,null,null,null,null,null,null,null,null,null,null,null,null,null,null,null,null,null,null,null,null,null,null,null,null,null,null,null,null,null,null,null,null,12,"-",9,null,{"$f":"MOD(TODAY(),3)+2","v":2},-18]
[null,null,null,null,null,null,null,null,null,null,null,null,null,null,null,null,null,null,null,null,null,null,null,null,null,null,null,null,null,null,null,null,null,null,null,null,null,null,null,null,null,null,null,null,null,null,null,null,null,null,null,null,null,null,null,null,{"$f":"IF(ASC(AQ6)=R10,\"正解！\",\"残念！\")","v":"残念！"},null,null,null,null,null,null,null,null,null,null,null,null,null,null,null,null,13,null,6,null,{"$f":"2*BZ19+1","v":7},42]
[null,null,null,null,null,null,null,null,null,null,null,null,null,null,null,null,null,null,null,null,null,null,null,null,null,null,null,null,null,null,null,null,null,null,null,null,null,null,null,null,null,null,null,null,null,null,null,null,null,null,null,null,null,null,null,null,null,null,null,null,null,null,null,null,null,null,null,null,null,null,null,null,null,14,"-",7,"-",{"$f":"BZ19+BZ17","v":5},35]
[null,null,null,null,null,null,null,null,null,null,null,null,null,null,null,null,null,null,null,null,null,null,null,null,null,null,null,null,null,null,null,null,null,null,null,null,null,null,null,null,null,null,null,null,null,null,null,null,null,null,null,null,null,null,null,null,null,null,null,null,null,null,null,null,null,null,null,null,null,null,null,null,null,15,null,8,"-",{"$f":"BZ13+BZ14","v":5},-40]
[null,null,null,null,null,null,null,null,null,null,null,null,null,null,null,null,null,null,null,null,null,null,null,null,null,null,null,null,null,null,null,null,null,null,null,null,null,null,null,null,null,null,null,null,null,null,null,null,null,null,null,null,null,null,null,null,null,null,null,null,null,null,null,null,null,null,null,null,null,null,null,null,null,16,"-",9,null,{"$f":"BZ22+1","v":6},-54]
[null,null,null,null,null,null,null,null,null,null,null,null,null,null,null,null,null,null,null,null,null,null,null,null,null,null,null,null,null,null,null,null,null,null,null,null,null,null,null,null,null,null,null,null,null,null,null,null,null,null,null,null,null,null,null,null,null,null,null,null,null,null,null,null,null,null,null,null,null,null,null,null,null,17,null,10,null,{"$f":"BZ19+BZ20","v":5},50]
[null,null,null,null,null,null,null,null,null,null,null,null,null,null,null,null,null,null,null,null,null,null,null,null,null,null,null,null,null,null,null,null,null,null,null,null,null,null,null,null,null,null,null,null,null,null,null,null,null,null,null,null,null,null,null,null,null,null,null,null,null,null,null,null,null,null,null,null,null,null,null,null,null,18,"-",11,"-",{"$f":"BZ11+BZ12","v":3},33]
[null,null,null,null,null,null,null,null,null,null,null,null,null,null,null,null,null,null,null,null,null,null,null,null,null,null,null,null,null,null,null,null,null,null,null,null,null,null,null,null,null,null,null,null,null,null,null,null,null,null,null,null,null,null,null,null,null,null,null,null,null,null,null,null,null,null,null,null,null,null,null,null,null,19,null,12,"-",{"$f":"BZ10+BZ22","v":8},-96]
[null,null,null,null,null,null,null,null,null,null,null,null,null,null,null,null,null,null,null,null,null,null,null,null,null,null,null,null,null,null,null,null,null,null,null,null,null,null,null,null,null,null,null,null,null,null,null,null,null,null,null,null,null,null,null,null,null,null,null,null,null,null,null,null,null,null,null,null,null,null,null,null,null,20,"-",14,null,{"$f":"BZ14*2","v":4},-56]

{"sheet":"○x=△【分数解】","index":1,"n_rows":30,"n_cols":78,"rows_kept":30,"cut":false,"hidden":false,"merged":[[9,6,10,9],[9,12,10,13],[9,14,10,15],[13,6,14,9],[1,4,2,6],[1,7,2,25],[4,2,4,5],[5,2,6,5],[5,8,6,11],[5,12,6,13],[5,14,6,15],[5,17,6,22],[18,12,19,13],[20,56,23,68],[13,22,14,23],[14,12,15,13],[14,14,15,15],[15,22,16,23],[15,24,16,25],[8,56,19,68],[18,14,19,15],[18,22,19,23],[18,24,19,50],[17,16,20,17],[14,16,15,17],[13,24,14,40],[15,26,16,40],[12,41,16,51],[17,18,18,20],[19,18,20,20],[9,16,10,17],[4,44,5,48],[6,44,7,48],[5,37,6,38],[5,39,6,40],[13,18,14,20],[15,18,16,20],[8,18,9,20],[10,18,11,20],[5,29,6,35],[5,42,6,43],[4,42,4,43]]}
[]
[null,null,null,null,2,null,null,"基本の１次方程式②"]
[]
[]
[null,null,"問題番号"]
[null,null,1,null,null,null,null,null,{"$f":"ASC(VLOOKUP(C6,$BV$9:$CA$28,2)&VLOOKUP(C6,$BV$9:$CA$28,3))","v":"2"},null,null,null,"x",null,"=",null,null,{"$f":"ASC(VLOOKUP(C6,$BV$9:$CA$28,4)&VLOOKUP(C6,$BV$9:$CA$28,5))","v":"3"},null,null,null,null,null,null,null,null,null,null,null,"解の入力",null,null,null,null,null,null,null,"x",null,"=",null,null,null,null,null,null,null,null,null,null,null,null,null,null,null,null,null,null,null,null,null,null,null,null,null,null,null,null,null,null,null,null,null,{"$f":"Q10&S9","v":"3"},null,{"$f":"AQ6&AS5","v":""},null,{"$f":"IF(BV6=BX6,1,0)","v":0}]
[null,null,null,null,null,null,null,null,null,null,null,null,null,null,null,null,null,null,null,null,null,null,null,null,null,null,null,null,null,null,null,null,null,null,null,null,null,null,null,null,null,null,null,null,null,null,null,null,null,null,null,null,null,null,null,null,null,null,null,null,null,null,null,null,null,null,null,null,null,null,null,null,null,{"$f":"S11","v":2},null,{"$f":"AS7","v":0},null,{"$f":"IF(BV7=BX7,1,0)","v":0}]
[]
[null,null,null,null,null,null,null,null,null,null,null,null,null,null,null,null,null,null,{"$f":"S14/GCD(S14,S16)","v":3},null,null,null,null,null,null,null,null,null,null,null,null,null,null,null,null,null,null,null,null,null,null,null,null,null,null,null,null,null,null,null,null,null,null,null,null,null,{"$f":"IF(BZ6*BZ7=1,\"○\",\"×\")","v":"×"},null,null,null,null,null,null,null,null,null,null,null,null,null,null,null,null,1,null,2,null,{"$f":"BX9*MOD(TODAY(),3)+1+BX9","v":3}]
[null,null,null,null,null,null,"解答",null,null,null,null,null,"x",null,"=",null,{"$f":"IF(I6*R6<0,\"-\",\"\")","v":""},null,null,null,null,null,null,null,null,null,null,null,null,null,null,null,null,null,null,null,null,null,null,null,null,null,null,null,null,null,null,null,null,null,null,null,null,null,null,null,null,null,null,null,null,null,null,null,null,null,null,null,null,null,null,null,null,2,null,3,null,{"$f":"BX10*MOD(TODAY(),3)+1+BX10","v":4}]
[null,null,null,null,null,null,null,null,null,null,null,null,null,null,null,null,null,null,{"$f":"S16/GCD(S14,S16)","v":2},null,null,null,null,null,null,null,null,null,null,null,null,null,null,null,null,null,null,null,null,null,null,null,null,null,null,null,null,null,null,null,null,null,null,null,null,null,null,null,null,null,null,null,null,null,null,null,null,null,null,null,null,null,null,3,"-",4,"-",5]
[null,null,null,null,null,null,null,null,null,null,null,null,null,null,null,null,null,null,null,null,null,null,null,null,null,null,null,null,null,null,null,null,null,null,null,null,null,null,null,null,null,null,null,null,null,null,null,null,null,null,null,null,null,null,null,null,null,null,null,null,null,null,null,null,null,null,null,null,null,null,null,null,null,4,"-",2,"-",3]
[null,null,null,null,null,null,null,null,null,null,null,null,null,null,null,null,null,null,null,null,null,null,null,null,null,null,null,null,null,null,null,null,null,null,null,null,null,null,null,null,null,{"$f":"IF(I6*R6<0,\"異符号の除法なので符号はマイナス\",\"\")","v":""},null,null,null,null,null,null,null,null,null,null,null,null,null,null,null,null,null,null,null,null,null,null,null,null,null,null,null,null,null,null,null,5,null,3,"-",4]
[null,null,null,null,null,null,"解説",null,null,null,null,null,null,null,null,null,null,null,{"$f":"ABS(R6)","v":3},null,null,null,"←",null,"右辺の数の絶対値",null,null,null,null,null,null,null,null,null,null,null,null,null,null,null,null,null,null,null,null,null,null,null,null,null,null,null,null,null,null,null,null,null,null,null,null,null,null,null,null,null,null,null,null,null,null,null,null,6,null,4,"-",5]
[null,null,null,null,null,null,null,null,null,null,null,null,"x",null,"=",null,{"$f":"IF(I6*R6<0,\"-\",\"\")","v":""},null,null,null,null,null,null,null,null,null,null,null,null,null,null,null,null,null,null,null,null,null,null,null,null,null,null,null,null,null,null,null,null,null,null,null,null,null,null,null,null,null,null,null,null,null,null,null,null,null,null,null,null,null,null,null,null,7,"-",5,null,{"$f":"BX15*MOD(TODAY(),2)+1","v":6}]
[null,null,null,null,null,null,null,null,null,null,null,null,null,null,null,null,null,null,{"$f":"ABS(I6)","v":2},null,null,null,"←",null,"x",null,"の係数の絶対値",null,null,null,null,null,null,null,null,null,null,null,null,null,null,null,null,null,null,null,null,null,null,null,null,null,null,null,null,null,null,null,null,null,null,null,null,null,null,null,null,null,null,null,null,null,null,8,"-",4,null,{"$f":"BX16*MOD(TODAY(),3)+2","v":2}]
[null,null,null,null,null,null,null,null,null,null,null,null,null,null,null,null,null,null,null,null,null,null,null,null,null,null,null,null,null,null,null,null,null,null,null,null,null,null,null,null,null,null,null,null,null,null,null,null,null,null,null,null,null,null,null,null,null,null,null,null,null,null,null,null,null,null,null,null,null,null,null,null,null,9,null,6,null,{"$f":"BX17*MOD(TODAY(),3)+3","v":3}]
[null,null,null,null,null,null,null,null,null,null,null,null,null,null,null,null,{"$f":"IF(M19=\"\",\"\",Q15)","v":""},null,{"$f":"IF(M19=\"\",\"\",S14/GCD(S14,S16))","v":""},null,null,null,null,null,null,null,null,null,null,null,null,null,null,null,null,null,null,null,null,null,null,null,null,null,null,null,null,null,null,null,null,null,null,null,null,null,null,null,null,null,null,null,null,null,null,null,null,null,null,null,null,null,null,10,"-",7,"-",{"$f":"BX18*MOD(TODAY(),3)+1","v":1}]
[null,null,null,null,null,null,null,null,null,null,null,null,{"$f":"IF(GCD(S14,S16)=1,\"\",\"x\")","v":""},null,{"$f":"IF(M19=\"\",\"\",\"=\")","v":""},null,null,null,null,null,null,null,{"$f":"IF(M19=\"\",\"\",\"←\")","v":""},null,{"$f":"IF(M19=\"\",\"\",\"分母・分子を\"&DBCS(GCD(S14,S16))&\"で割る\")","v":""},null,null,null,null,null,null,null,null,null,null,null,null,null,null,null,null,null,null,null,null,null,null,null,null,null,null,null,null,null,null,null,null,null,null,null,null,null,null,null,null,null,null,null,null,null,null,null,null,11,null,8,"-",{"$f":"BX19*MOD(TODAY(),3)+4","v":4}]
[null,null,null,null,null,null,null,null,null,null,null,null,null,null,null,null,null,null,{"$f":"IF(M19=\"\",\"\",S16/GCD(S14,S16))","v":""},null,null,null,null,null,null,null,null,null,null,null,null,null,null,null,null,null,null,null,null,null,null,null,null,null,null,null,null,null,null,null,null,null,null,null,null,null,null,null,null,null,null,null,null,null,null,null,null,null,null,null,null,null,null,12,"-",9,null,{"$f":"BX20*MOD(TODAY(),3)+6","v":6}]
[null,null,null,null,null,null,null,null,null,null,null,null,null,null,null,null,null,null,null,null,null,null,null,null,null,null,null,null,null,null,null,null,null,null,null,null,null,null,null,null,null,null,null,null,null,null,null,null,null,null,null,null,null,null,null,null,{"$f":"IF(ASC(AR5)=R9,\"正解！\",\"残念！\")","v":"正解！"},null,null,null,null,null,null,null,null,null,null,null,null,null,null,null,null,13,null,6,null,{"$f":"BX21*MOD(TODAY(),3)+5","v":5}]
[null,null,null,null,null,null,null,null,null,null,null,null,null,null,null,null,null,null,null,null,null,null,null,null,null,null,null,null,null,null,null,null,null,null,null,null,null,null,null,null,null,null,null,null,null,null,null,null,null,null,null,null,null,null,null,null,null,null,null,null,null,null,null,null,null,null,null,null,null,null,null,null,null,14,"-",7,"-",{"$f":"BX22*MOD(TODAY(),3)+3","v":3}]
[null,null,null,null,null,null,null,null,null,null,null,null,null,null,null,null,null,null,null,null,null,null,null,null,null,null,null,null,null,null,null,null,null,null,null,null,null,null,null,null,null,null,null,null,null,null,null,null,null,null,null,null,null,null,null,null,null,null,null,null,null,null,null,null,null,null,null,null,null,null,null,null,null,15,null,8,"-",{"$f":"BX23*MOD(TODAY(),3)+6","v":6}]
[null,null,null,null,null,null,null,null,null,null,null,null,null,null,null,null,null,null,null,null,null,null,null,null,null,null,null,null,null,null,null,null,null,null,null,null,null,null,null,null,null,null,null,null,null,null,null,null,null,null,null,null,null,null,null,null,null,null,null,null,null,null,null,null,null,null,null,null,null,null,null,null,null,16,"-",9,null,{"$f":"BX24*MOD(TODAY(),3)+3","v":3}]
[null,null,null,null,null,null,null,null,null,null,null,null,null,null,null,null,null,null,null,null,null,null,null,null,null,null,null,null,null,null,null,null,null,null,null,null,null,null,null,null,null,null,null,null,null,null,null,null,null,null,null,null,null,null,null,null,null,null,null,null,null,null,null,null,null,null,null,null,null,null,null,null,null,17,null,10,null,{"$f":"BX25*MOD(TODAY(),3)+5","v":5}]
[null,null,null,null,null,null,null,null,null,null,null,null,null,null,null,null,null,null,null,null,null,null,null,null,null,null,null,null,null,null,null,null,null,null,null,null,null,null,null,null,null,null,null,null,null,null,null,null,null,null,null,null,null,null,null,null,null,null,null,null,null,null,null,null,null,null,null,null,null,null,null,null,null,18,"-",11,"-",{"$f":"BX26*MOD(TODAY(),3)+4","v":4}]
[null,null,null,null,null,null,null,null,null,null,null,null,null,null,null,null,null,null,null,null,null,null,null,null,null,null,null,null,null,null,null,null,null,null,null,null,null,null,null,null,null,null,null,null,null,null,null,null,null,null,null,null,null,null,null,null,null,null,null,null,null,null,null,null,null,null,null,null,null,null,null,null,null,19,null,12,"-",{"$f":"BX27*MOD(TODAY(),3)+6","v":6}]
[null,null,null,null,null,null,null,null,null,null,null,null,null,null,null,null,null,null,null,null,null,null,null,null,null,null,null,null,null,null,null,null,null,null,null,null,null,null,null,null,null,null,null,null,null,null,null,null,null,null,null,null,null,null,null,null,null,null,null,null,null,null,null,null,null,null,null,null,null,null,null,null,null,20,"-",14,null,{"$f":"BX28*MOD(TODAY(),3)+7","v":7}]
[]
[null,null,null,null,null,null,null,null,null,null,null,null,null,null,null,null,null,null,null,null,null,null,null,null,null,null,null,null,null,null,null,null,null,null,null,null,null,null,null,null,null,null,null,null,null,null,null,null,null,null,null,null,null,null,null,null,null,null,null,null,null,null,null,null,null,null,null,null,null,null,null,null,null,"-"]

{"sheet":"一般型【整数解】","index":2,"n_rows":28,"n_cols":86,"rows_kept":28,"cut":false,"hidden":false,"merged":[[22,19,23,20],[22,21,23,22],[22,24,23,28],[19,14,20,18],[16,32,17,35],[19,21,20,22],[19,19,20,20],[19,24,20,28],[16,8,17,11],[16,12,17,13],[16,14,17,15],[16,21,17,22],[16,19,17,20],[16,16,17,18],[1,4,2,6],[1,7,2,25],[4,2,4,5],[4,42,4,47],[5,2,6,5],[5,8,6,11],[5,12,6,13],[5,14,6,15],[5,16,6,18],[5,19,6,20],[5,25,6,26],[5,37,6,38],[5,39,6,40],[5,27,6,28],[5,21,6,24],[5,29,6,32],[9,6,10,9],[9,12,10,13],[9,14,10,15],[9,17,10,22],[13,6,14,9],[13,10,14,13],[13,14,14,15],[13,16,14,17],[13,18,14,20],[13,21,14,22],[20,56,23,68],[5,34,6,35],[5,42,6,47],[8,56,19,68],[13,23,14,26],[13,27,14,28],[13,29,14,30],[13,31,14,34],[16,24,17,25],[16,26,17,29],[16,30,17,31],[16,36,17,41],[16,42,17,43],[16,44,17,45],[16,46,17,49],[16,50,17,55]]}
[]
[null,null,null,null,3,null,null,"移項（整数解）"]
[]
[]
[null,null,"問題番号"]
[null,null,1,null,null,null,null,null,{"$f":"VLOOKUP($C$6,$BV$9:$CQ$28,9,0)","v":"2"},null,null,null,"x",null,{"$f":"IF(VLOOKUP($C$6,$BV$9:$CQ$28,12,0)<0,\"-\",\"+\")","v":"-"},null,{"$f":"ABS(VLOOKUP($C$6,$BV$9:$CQ$28,12,0))","v":7},null,null,"=",null,{"$f":"VLOOKUP($C$6,$BV$9:$CQ$28,10,0)","v":"4"},null,null,null,"x",null,{"$f":"IF(VLOOKUP($C$6,$BV$9:$CQ$28,13,0)<0,\"-\",\"+\")","v":"-"},null,{"$f":"ABS(VLOOKUP($C$6,$BV$9:$CQ$28,13,0))","v":17},null,null,null,null,"解",null,null,"x",null,"="]
[]
[]
[null,null,null,null,null,null,null,null,null,null,null,null,null,null,null,null,null,null,null,null,null,null,null,null,null,null,null,null,null,null,null,null,null,null,null,null,null,null,null,null,null,null,null,null,null,null,null,null,null,null,null,null,null,null,null,null,{"$f":"IF(ASC(AQ6)=R10,\"○\",\"×\")","v":"×"},null,null,null,null,null,null,null,null,null,null,null,null,null,null,null,null,1,null,2,null,{"$f":"2*MOD(TODAY(),3)+BX9+2","v":4},null,null,null,{"$f":"ASC(BW9&BX9)","v":"2"},{"$f":"ASC(BY9&BZ9)","v":"4"},{"$f":"CD9-CE9","v":-2},{"$f":"-MOD(WEEKDAY(TODAY()),7)-1","v":-7},{"$f":"CG9+(CF9-CG9)*CF9","v":-17}]
[null,null,null,null,null,null,"解答",null,null,null,null,null,"x",null,"=",null,null,{"$f":"Y23","v":5},null,null,null,null,null,null,null,null,null,null,null,null,null,null,null,null,null,null,null,null,null,null,null,null,null,null,null,null,null,null,null,null,null,null,null,null,null,null,null,null,null,null,null,null,null,null,null,null,null,null,null,null,null,null,null,2,null,3,null,{"$f":"3*MOD(TODAY(),3)+BX10+2","v":5},null,null,null,{"$f":"ASC(BW10&BX10)","v":"3"},"5",{"$f":"CD10-CE10","v":-2},{"$f":"MOD(WEEKDAY(TODAY()),7)+1","v":7},{"$f":"CG10+(CF10-CG10)*CF10","v":25}]
[null,null,null,null,null,null,null,null,null,null,null,null,null,null,null,null,null,null,null,null,null,null,null,null,null,null,null,null,null,null,null,null,null,null,null,null,null,null,null,null,null,null,null,null,null,null,null,null,null,null,null,null,null,null,null,null,null,null,null,null,null,null,null,null,null,null,null,null,null,null,null,null,null,3,"-",4,"-",{"$f":"2*MOD(TODAY(),3)+BX11+2","v":6},null,null,null,"-4","-6",2,{"$f":"-MOD(WEEKDAY(TODAY()),7)-2","v":-8},12]
[null,null,null,null,null,null,null,null,null,null,null,null,null,null,null,null,null,null,null,null,null,null,null,null,null,null,null,null,null,null,null,null,null,null,null,null,null,null,null,null,null,null,null,null,null,null,null,null,null,null,null,null,null,null,null,null,null,null,null,null,null,null,null,null,null,null,null,null,null,null,null,null,null,4,"-",2,"-",{"$f":"3*MOD(TODAY(),3)+BX12+2","v":4},null,null,null,"-2","-4",2,{"$f":"MOD(WEEKDAY(TODAY()),7)+3","v":9},-5]
[null,null,null,null,null,null,null,null,null,null,null,null,null,null,null,null,null,null,null,null,null,null,null,null,null,null,null,null,null,null,null,null,null,null,null,null,null,null,null,null,null,null,null,null,null,null,null,null,null,null,null,null,null,null,null,null,null,null,null,null,null,null,null,null,null,null,null,null,null,null,null,null,null,5,null,3,"-",{"$f":"MOD(TODAY(),3)+BX13","v":3},null,null,null,"3","-3",6,{"$f":"-MOD(WEEKDAY(TODAY()),7)-1","v":-7},71]
[null,null,null,null,null,null,"解説",null,null,null,{"$f":"I6","v":"2"},null,null,null,"x",null,{"$f":"O6","v":"-"},null,{"$f":"Q6","v":7},null,null,"=",null,{"$f":"ASC(V6)","v":"4"},null,null,null,"x",null,{"$f":"AB6","v":"-"},null,{"$f":"AD6","v":17},null,null,null,null,null,null,null,null,null,null,null,null,null,null,null,null,null,null,null,null,null,null,null,null,null,null,null,null,null,null,null,null,null,null,null,null,null,null,null,null,null,6,null,4,"-",{"$f":"2*MOD(TODAY(),3)+BX14","v":4},null,null,null,"4","-4",8,{"$f":"MOD(WEEKDAY(TODAY()),7)","v":6},22]
[null,null,null,null,null,null,null,null,null,null,null,null,null,null,null,null,null,null,null,null,null,null,null,null,null,null,null,null,null,null,null,null,null,null,null,null,null,null,null,null,null,null,null,null,null,null,null,null,null,null,null,null,null,null,null,null,null,null,null,null,null,null,null,null,null,null,null,null,null,null,null,null,null,7,"-",5,null,{"$f":"MOD(TODAY(),3)+BX15","v":5},null,null,null,"-5","5",-10,{"$f":"-MOD(WEEKDAY(TODAY()),7)-2","v":-8},12]
[null,null,null,null,null,null,null,null,null,null,null,null,null,null,null,null,null,null,null,null,null,null,null,null,null,null,null,null,null,null,null,null,null,null,null,null,null,null,null,null,null,null,null,null,null,null,null,null,null,null,null,null,null,null,null,null,null,null,null,null,null,null,null,null,null,null,null,null,null,null,null,null,null,8,"-",2,null,{"$f":"4*MOD(TODAY(),3)+BX16+1","v":3},null,null,null,"-2","3",-5,{"$f":"-MOD(WEEKDAY(TODAY()),7)-3","v":-9},-29]
[null,null,null,null,null,null,null,null,{"$f":"VLOOKUP($C$6,$BV$9:$CQ$28,9,0)","v":"2"},null,null,null,"x",null,{"$f":"IF(0-V6<0,\"-\",\"+\")","v":"-"},null,{"$f":"ABS(X14)","v":4},null,null,"x",null,"=",null,null,{"$f":"IF(AD14=\"-\",\"-\",\"\")","v":"-"},null,{"$f":"ABS(VLOOKUP($C$6,$BV$9:$CQ$28,13,0))","v":17},null,null,null,{"$f":"IF(Q14=\"-\",\"+\",\"-\")","v":"+"},null,{"$f":"S14","v":7},null,null,null,{"$f":"\"← \"&X14","v":"← 4"},null,null,null,null,null,"x",null,"と",null,{"$f":"Q14&S14","v":"-7"},null,null,null,"を移項",null,null,null,null,null,null,null,null,null,null,null,null,null,null,null,null,null,null,null,null,null,null,9,null,3,null,{"$f":"5*MOD(TODAY(),3)+BX17+2","v":5},null,null,null,"3","5",-2,{"$f":"MOD(WEEKDAY(TODAY()),7)","v":6},22]
[null,null,null,null,null,null,null,null,null,null,null,null,null,null,null,null,null,null,null,null,null,null,null,null,null,null,null,null,null,null,null,null,null,null,null,null,null,null,null,null,null,null,null,null,null,null,null,null,null,null,null,null,null,null,null,null,null,null,null,null,null,null,null,null,null,null,null,null,null,null,null,null,null,10,"-",4,"-",{"$f":"2*MOD(TODAY(),3)+BX18+2","v":6},null,null,null,"-4","-6",2,{"$f":"-MOD(WEEKDAY(TODAY()),7)-1","v":-7},11]
[null,null,null,null,null,null,null,null,null,null,null,null,null,null,null,null,null,null,null,null,null,null,null,null,null,null,null,null,null,null,null,null,null,null,null,null,null,null,null,null,null,null,null,null,null,null,null,null,null,null,null,null,null,null,null,null,null,null,null,null,null,null,null,null,null,null,null,null,null,null,null,null,null,11,null,5,"-",{"$f":"2*MOD(TODAY(),3)+BX19+1","v":6},null,null,null,"5","-6",11,{"$f":"MOD(WEEKDAY(TODAY()),7)+2","v":8},41]
[null,null,null,null,null,null,null,null,null,null,null,null,null,null,{"$f":"I6-V6","v":-2},null,null,null,null,"x",null,"=",null,null,{"$f":"ASC(AB6&AD6)-ASC(O6&Q6)","v":-10},null,null,null,null,null,null,null,null,null,null,null,null,null,null,null,null,null,null,null,null,null,null,null,null,null,null,null,null,null,null,null,null,null,null,null,null,null,null,null,null,null,null,null,null,null,null,null,null,12,"-",3,null,{"$f":"WEEKDAY(TODAY())+1","v":7},null,null,null,"-3","7",-10,{"$f":"-MOD(WEEKDAY(TODAY()),7)-3","v":-9},1]
[null,null,null,null,null,null,null,null,null,null,null,null,null,null,null,null,null,null,null,null,null,null,null,null,null,null,null,null,null,null,null,null,null,null,null,null,null,null,null,null,null,null,null,null,null,null,null,null,null,null,null,null,null,null,null,null,{"$f":"IF(ASC(AQ6)=R10,\"正解！\",\"残念！\")","v":"残念！"},null,null,null,null,null,null,null,null,null,null,null,null,null,null,null,null,13,null,4,null,{"$f":"WEEKDAY(TODAY())+2","v":8},null,null,null,"4","8",-4,{"$f":"MOD(WEEKDAY(TODAY()),7)+4","v":10},66]
[null,null,null,null,null,null,null,null,null,null,null,null,null,null,null,null,null,null,null,null,null,null,null,null,null,null,null,null,null,null,null,null,null,null,null,null,null,null,null,null,null,null,null,null,null,null,null,null,null,null,null,null,null,null,null,null,null,null,null,null,null,null,null,null,null,null,null,null,null,null,null,null,null,14,"-",6,"-",{"$f":"INT(WEEKDAY(TODAY())/2)+1","v":4},null,null,null,"-6","-4",-2,{"$f":"-MOD(WEEKDAY(TODAY()),7)-5","v":-11},-29]
[null,null,null,null,null,null,null,null,null,null,null,null,null,null,null,null,null,null,null,"x",null,"=",null,null,{"$f":"Y20/O20","v":5},null,null,null,null,null,null,null,null,null,null,null,null,null,null,null,null,null,null,null,null,null,null,null,null,null,null,null,null,null,null,null,null,null,null,null,null,null,null,null,null,null,null,null,null,null,null,null,null,15,null,7,"-",{"$f":"INT(WEEKDAY(TODAY())/2)+2","v":5},null,null,null,"7","-5",12,{"$f":"MOD(WEEKDAY(TODAY()),7)+7","v":13},1]
[null,null,null,null,null,null,null,null,null,null,null,null,null,null,null,null,null,null,null,null,null,null,null,null,null,null,null,null,null,null,null,null,null,null,null,null,null,null,null,null,null,null,null,null,null,null,null,null,null,null,null,null,null,null,null,null,null,null,null,null,null,null,null,null,null,null,null,null,null,null,null,null,null,16,"-",5,null,{"$f":"INT(WEEKDAY(TODAY())/2)+3","v":6},null,null,null,"-5","6",-11,{"$f":"-MOD(WEEKDAY(TODAY()),7)-8","v":-14},-47]
[null,null,null,null,null,null,null,null,null,null,null,null,null,null,null,null,null,null,null,null,null,null,null,null,null,null,null,null,null,null,null,null,null,null,null,null,null,null,null,null,null,null,null,null,null,null,null,null,null,null,null,null,null,null,null,null,null,null,null,null,null,null,null,null,null,null,null,null,null,null,null,null,null,17,null,3,null,{"$f":"INT(BX25+WEEKDAY(TODAY())/2)+3","v":9},null,null,null,"3","9",-6,{"$f":"MOD(WEEKDAY(TODAY()),7)+3","v":9},99]
[null,null,null,null,null,null,null,null,null,null,null,null,null,null,null,null,null,null,null,null,null,null,null,null,null,null,null,null,null,null,null,null,null,null,null,null,null,null,null,null,null,null,null,null,null,null,null,null,null,null,null,null,null,null,null,null,null,null,null,null,null,null,null,null,null,null,null,null,null,null,null,null,null,18,"-",8,"-",{"$f":"INT((BX26+WEEKDAY(TODAY()))/2)+4","v":11},null,null,null,"-8","-11",3,{"$f":"-MOD(WEEKDAY(TODAY()),7)-10","v":-16},41]
[null,null,null,null,null,null,null,null,null,null,null,null,null,null,null,null,null,null,null,null,null,null,null,null,null,null,null,null,null,null,null,null,null,null,null,null,null,null,null,null,null,null,null,null,null,null,null,null,null,null,null,null,null,null,null,null,null,null,null,null,null,null,null,null,null,null,null,null,null,null,null,null,null,19,null,9,"-",{"$f":"INT((BX27+WEEKDAY(TODAY()))/2)+2","v":9},null,null,null,"9","-9",18,{"$f":"MOD(WEEKDAY(TODAY()),7)+11","v":17},35]
[null,null,null,null,null,null,null,null,null,null,null,null,null,null,null,null,null,null,null,null,null,null,null,null,null,null,null,null,null,null,null,null,null,null,null,null,null,null,null,null,null,null,null,null,null,null,null,null,null,null,null,null,null,null,null,null,null,null,null,null,null,null,null,null,null,null,null,null,null,null,null,null,null,20,"-",12,null,{"$f":"INT((BX28+WEEKDAY(TODAY()))/2)+2","v":11},null,null,null,"-12","11",-23,{"$f":"-MOD(WEEKDAY(TODAY()),7)-12","v":-18},97]

{"sheet":"一般型【分数解】","index":3,"n_rows":33,"n_cols":89,"rows_kept":33,"cut":false,"hidden":false,"merged":[[16,46,17,49],[16,50,17,55],[5,41,6,45],[5,39,6,39],[9,16,10,19],[9,20,10,20],[8,21,9,23],[10,21,11,23],[13,16,14,17],[13,27,14,28],[13,29,14,30],[5,21,6,24],[5,25,6,26],[5,27,6,28],[5,29,6,32],[5,34,6,35],[30,31,31,46],[26,31,27,44],[26,45,27,46],[26,47,27,53],[29,25,30,27],[30,19,31,20],[30,21,31,22],[30,23,31,24],[31,25,32,27],[26,19,27,20],[26,21,27,22],[26,23,27,24],[25,25,26,27],[27,25,28,27],[21,56,24,68],[22,19,23,20],[22,21,23,22],[22,24,23,28],[4,48,4,49],[4,50,5,54],[5,37,6,38],[5,48,6,49],[6,50,7,54],[16,32,17,35],[16,36,17,41],[16,42,17,43],[13,31,14,34],[13,18,14,20],[13,21,14,22],[13,23,14,26],[16,44,17,45],[16,21,17,22],[16,24,17,25],[16,26,17,29],[16,30,17,31],[9,56,20,68],[9,6,10,9],[9,12,10,13],[9,14,10,15],[13,6,14,9],[13,10,14,13],[13,14,14,15],[16,8,17,11],[16,12,17,13],[16,14,17,15],[16,16,17,18],[16,19,17,20],[19,14,20,18],[19,19,20,20],[19,21,20,22],[19,24,20,28],[1,4,2,6],[1,7,2,25],[4,2,4,5],[5,2,6,5],[5,8,6,11],[5,12,6,13],[5,14,6,15],[5,16,6,18],[5,19,6,20]]}
[]
[null,null,null,null,4,null,null,"移項（分数解）"]
[]
[]
[null,null,"問題番号"]
[null,null,1,null,null,null,null,null,{"$f":"VLOOKUP($C$6,$BV$9:$CQ$28,9,0)","v":"2"},null,null,null,"x",null,{"$f":"IF(VLOOKUP($C$6,$BV$9:$CQ$28,12,0)<0,\"-\",\"+\")","v":"-"},null,{"$f":"ABS(VLOOKUP($C$6,$BV$9:$CQ$28,12,0))","v":7},null,null,"=",null,{"$f":"VLOOKUP($C$6,$BV$9:$CQ$28,10,0)","v":"4"},null,null,null,"x",null,{"$f":"IF(VLOOKUP($C$6,$BV$9:$CQ$28,13,0)<0,\"-\",\"+\")","v":"+"},null,{"$f":"ABS(VLOOKUP($C$6,$BV$9:$CQ$28,13,0))","v":3},null,null,null,null,"解",null,null,"x",null,"="]
[]
[]
[null,null,null,null,null,null,null,null,null,null,null,null,null,null,null,null,null,null,null,null,null,{"$f":"IF(MOD(ABS(Y20),ABS(O20))=0,\"\",ABS(Y20)/GCD(Z26,Z28))","v":""},null,null,null,null,null,null,null,null,null,null,null,null,null,null,null,null,null,null,null,null,null,null,null,null,null,null,null,null,null,null,null,null,null,null,null,null,null,null,null,null,null,null,null,null,null,null,null,null,null,null,null,1,null,2,null,{"$f":"2*MOD(TODAY(),3)+BX9+2","v":4},null,null,null,{"$f":"ASC(BW9&BX9)","v":"2"},{"$f":"ASC(BY9&BZ9)","v":"4"},{"$f":"CD9-CE9","v":-2},{"$f":"-MOD(WEEKDAY(TODAY()),7)-1","v":-7},{"$f":"BW9&CK9","v":"3"},null,null,3]
[null,null,null,null,null,null,"解答",null,null,null,null,null,"x",null,"=",null,{"$f":"IF(MOD(ABS(Y20),ABS(O20))=0,Y20/O20,\"\")","v":-5},null,null,null,{"$f":"IF(MOD(ABS(Y20),ABS(O20))=0,\"\",IF(O20*Y20<0,\"-\",\"\"))","v":""},null,null,null,null,null,null,null,null,null,null,null,null,null,null,null,null,null,null,null,null,null,null,null,null,null,null,null,null,null,null,null,null,null,null,null,{"$f":"IF(CD33=0,\"○\",\"×\")","v":"×"},null,null,null,null,null,null,null,null,null,null,null,null,null,null,null,null,2,null,3,null,{"$f":"3*MOD(TODAY(),3)+BX10+2","v":5},null,null,null,{"$f":"ASC(BW10&BX10)","v":"3"},"5",{"$f":"CD10-CE10","v":-2},{"$f":"MOD(WEEKDAY(TODAY()),7)+1","v":7},{"$f":"BW10&CK10","v":"5"},null,null,5]
[null,null,null,null,null,null,null,null,null,null,null,null,null,null,null,null,null,null,null,null,null,{"$f":"IF(MOD(ABS(Y20),ABS(O20))=0,\"\",ABS(O20)/GCD(Z26,Z28))","v":""},null,null,null,null,null,null,null,null,null,null,null,null,null,null,null,null,null,null,null,null,null,null,null,null,null,null,null,null,null,null,null,null,null,null,null,null,null,null,null,null,null,null,null,null,null,null,null,null,null,null,null,3,"-",4,"-",{"$f":"2*MOD(TODAY(),3)+BX11+2","v":6},null,null,null,"-4","-6",2,{"$f":"-MOD(WEEKDAY(TODAY()),7)-2","v":-8},"-7",null,null,7]
[null,null,null,null,null,null,null,null,null,null,null,null,null,null,null,null,null,null,null,null,null,null,null,null,null,null,null,null,null,null,null,null,null,null,null,null,null,null,null,null,null,null,null,null,null,null,null,null,null,null,null,null,null,null,null,null,null,null,null,null,null,null,null,null,null,null,null,null,null,null,null,null,null,4,"-",2,"-",{"$f":"3*MOD(TODAY(),3)+BX12+2","v":4},null,null,null,"-2","-4",2,{"$f":"MOD(WEEKDAY(TODAY()),7)+3","v":9},"-11",null,null,11]
[null,null,null,null,null,null,null,null,null,null,null,null,null,null,null,null,null,null,null,null,null,null,null,null,null,null,null,null,null,null,null,null,null,null,null,null,null,null,null,null,null,null,null,null,null,null,null,null,null,null,null,null,null,null,null,null,null,null,null,null,null,null,null,null,null,null,null,null,null,null,null,null,null,5,null,3,"-",{"$f":"MOD(TODAY(),3)+BX13","v":3},null,null,null,"3","-3",6,{"$f":"-MOD(WEEKDAY(TODAY()),7)-1","v":-7},"13",null,null,13]
[null,null,null,null,null,null,"解説",null,null,null,{"$f":"I6","v":"2"},null,null,null,"x",null,{"$f":"O6","v":"-"},null,{"$f":"Q6","v":7},null,null,"=",null,{"$f":"ASC(V6)","v":"4"},null,null,null,"x",null,{"$f":"AB6","v":"+"},null,{"$f":"AD6","v":3},null,null,null,null,null,null,null,null,null,null,null,null,null,null,null,null,null,null,null,null,null,null,null,null,null,null,null,null,null,null,null,null,null,null,null,null,null,null,null,null,null,6,null,4,"-",{"$f":"2*MOD(TODAY(),3)+BX14+1","v":5},null,null,null,"4","-5",9,{"$f":"MOD(WEEKDAY(TODAY()),7)","v":6},"17",null,null,17]
[null,null,null,null,null,null,null,null,null,null,null,null,null,null,null,null,null,null,null,null,null,null,null,null,null,null,null,null,null,null,null,null,null,null,null,null,null,null,null,null,null,null,null,null,null,null,null,null,null,null,null,null,null,null,null,null,null,null,null,null,null,null,null,null,null,null,null,null,null,null,null,null,null,7,"-",5,null,{"$f":"MOD(TODAY(),3)+BX15+2","v":7},null,null,null,"-5","7",-12,{"$f":"-MOD(WEEKDAY(TODAY()),7)-2","v":-8},"-19",null,null,19]
[null,null,null,null,null,null,null,null,null,null,null,null,null,null,null,null,null,null,null,null,null,null,null,null,null,null,null,null,null,null,null,null,null,null,null,null,null,null,null,null,null,null,null,null,null,null,null,null,null,null,null,null,null,null,null,null,null,null,null,null,null,null,null,null,null,null,null,null,null,null,null,null,null,8,"-",2,null,{"$f":"4*MOD(TODAY(),3)+BX16","v":2},null,null,null,"-2","2",-4,{"$f":"-MOD(WEEKDAY(TODAY()),7)-3","v":-9},"-21",null,null,21]
[null,null,null,null,null,null,null,null,{"$f":"VLOOKUP($C$6,$BV$9:$CQ$28,9,0)","v":"2"},null,null,null,"x",null,{"$f":"IF(0-V6<0,\"-\",\"+\")","v":"-"},null,{"$f":"ABS(X14)","v":4},null,null,"x",null,"=",null,null,{"$f":"IF(AD14=\"-\",\"-\",\"\")","v":""},null,{"$f":"ABS(VLOOKUP($C$6,$BV$9:$CQ$28,13,0))","v":3},null,null,null,{"$f":"IF(Q14=\"-\",\"+\",\"-\")","v":"+"},null,{"$f":"S14","v":7},null,null,null,{"$f":"\"← \"&X14","v":"← 4"},null,null,null,null,null,"x",null,"と",null,{"$f":"Q14&S14","v":"-7"},null,null,null,"を移項",null,null,null,null,null,null,null,null,null,null,null,null,null,null,null,null,null,null,null,null,null,null,9,null,3,null,{"$f":"5*MOD(TODAY(),3)+BX17+2","v":5},null,null,null,"3","5",-2,{"$f":"MOD(WEEKDAY(TODAY()),7)","v":6},{"$f":"CH9","v":"3"}]
[null,null,null,null,null,null,null,null,null,null,null,null,null,null,null,null,null,null,null,null,null,null,null,null,null,null,null,null,null,null,null,null,null,null,null,null,null,null,null,null,null,null,null,null,null,null,null,null,null,null,null,null,null,null,null,null,null,null,null,null,null,null,null,null,null,null,null,null,null,null,null,null,null,10,"-",4,"-",{"$f":"2*MOD(TODAY(),3)+BX18+3","v":7},null,null,null,"-4","-7",3,{"$f":"-MOD(WEEKDAY(TODAY()),7)-1","v":-7},{"$f":"CH10","v":"5"}]
[null,null,null,null,null,null,null,null,null,null,null,null,null,null,null,null,null,null,null,null,null,null,null,null,null,null,null,null,null,null,null,null,null,null,null,null,null,null,null,null,null,null,null,null,null,null,null,null,null,null,null,null,null,null,null,null,null,null,null,null,null,null,null,null,null,null,null,null,null,null,null,null,null,11,null,5,"-",{"$f":"2*MOD(TODAY(),3)+BX19","v":5},null,null,null,"5","-5",10,{"$f":"MOD(WEEKDAY(TODAY()),7)+2","v":8},"-7"]
[null,null,null,null,null,null,null,null,null,null,null,null,null,null,{"$f":"I6-V6","v":-2},null,null,null,null,"x",null,"=",null,null,{"$f":"ASC(AB6&AD6)-ASC(O6&Q6)","v":10},null,null,null,null,null,null,null,null,null,null,null,null,null,null,null,null,null,null,null,null,null,null,null,null,null,null,null,null,null,null,null,null,null,null,null,null,null,null,null,null,null,null,null,null,null,null,null,null,12,"-",3,null,{"$f":"WEEKDAY(TODAY())+1","v":7},null,null,null,"-3","7",-10,{"$f":"-MOD(WEEKDAY(TODAY()),7)-3","v":-9},"-11"]
[null,null,null,null,null,null,null,null,null,null,null,null,null,null,null,null,null,null,null,null,null,null,null,null,null,null,null,null,null,null,null,null,null,null,null,null,null,null,null,null,null,null,null,null,null,null,null,null,null,null,null,null,null,null,null,null,null,null,null,null,null,null,null,null,null,null,null,null,null,null,null,null,null,13,null,4,null,{"$f":"WEEKDAY(TODAY())+2","v":8},null,null,null,"4","8",-4,{"$f":"MOD(WEEKDAY(TODAY()),7)+4","v":10},"13"]
[null,null,null,null,null,null,null,null,null,null,null,null,null,null,null,null,null,null,null,null,null,null,null,null,null,null,null,null,null,null,null,null,null,null,null,null,null,null,null,null,null,null,null,null,null,null,null,null,null,null,null,null,null,null,null,null,{"$f":"IF(CD33=0,\"正解！\",\"残念！\")","v":"残念！"},null,null,null,null,null,null,null,null,null,null,null,null,null,null,null,null,14,"-",6,"-",{"$f":"INT(WEEKDAY(TODAY())/2)+1","v":4},null,null,null,"-6","-4",-2,{"$f":"-MOD(WEEKDAY(TODAY()),7)-5","v":-11},"17"]
[null,null,null,null,null,null,null,null,null,null,null,null,null,null,null,null,null,null,null,{"$f":"IF(MOD(ABS(Y20),ABS(O20))=0,\"x\",\"\")","v":"x"},null,{"$f":"IF(MOD(ABS(Y20),ABS(O20))=0,\"=\",\"\")","v":"="},null,null,{"$f":"IF(MOD(ABS(Y20),ABS(O20))=0,Y20/O20,\"\")","v":-5},null,null,null,null,null,null,null,null,null,null,null,null,null,null,null,null,null,null,null,null,null,null,null,null,null,null,null,null,null,null,null,null,null,null,null,null,null,null,null,null,null,null,null,null,null,null,null,null,15,null,7,"-",{"$f":"INT(WEEKDAY(TODAY())/2)+2","v":5},null,null,null,"7","-5",12,{"$f":"MOD(WEEKDAY(TODAY()),7)+7","v":13},"-19"]
[null,null,null,null,null,null,null,null,null,null,null,null,null,null,null,null,null,null,null,null,null,null,null,null,null,null,null,null,null,null,null,null,null,null,null,null,null,null,null,null,null,null,null,null,null,null,null,null,null,null,null,null,null,null,null,null,null,null,null,null,null,null,null,null,null,null,null,null,null,null,null,null,null,16,"-",5,null,{"$f":"INT(WEEKDAY(TODAY())/2)+3","v":6},null,null,null,"-5","6",-11,{"$f":"-MOD(WEEKDAY(TODAY()),7)-8","v":-14},"-21"]
[null,null,null,null,null,null,null,null,null,null,null,null,null,null,null,null,null,null,null,null,null,null,null,null,null,null,null,null,null,null,null,null,null,null,null,null,null,null,null,null,null,null,null,null,null,null,null,null,null,null,null,null,null,null,null,null,null,null,null,null,null,null,null,null,null,null,null,null,null,null,null,null,null,17,null,3,null,{"$f":"INT(BX25+WEEKDAY(TODAY())/2)+3","v":9},null,null,null,"3","9",-6,{"$f":"MOD(WEEKDAY(TODAY()),7)+3","v":9},"3"]
[null,null,null,null,null,null,null,null,null,null,null,null,null,null,null,null,null,null,null,null,null,null,null,null,null,{"$f":"IF(MOD(ABS(Y20),ABS(O20))=0,\"\",ABS(Y20))","v":""},null,null,null,null,null,null,null,null,null,null,null,null,null,null,null,null,null,null,null,null,null,null,null,null,null,null,null,null,null,null,null,null,null,null,null,null,null,null,null,null,null,null,null,null,null,null,null,18,"-",8,"-",{"$f":"INT((BX26+WEEKDAY(TODAY()))/2)+4","v":11},null,null,null,"-8","-11",3,{"$f":"-MOD(WEEKDAY(TODAY()),7)-10","v":-16},"5"]
[null,null,null,null,null,null,null,null,null,null,null,null,null,null,null,null,null,null,null,{"$f":"IF(MOD(ABS(Y20),ABS(O20))=0,\"\",\"x\")","v":""},null,{"$f":"IF(MOD(ABS(Y20),ABS(O20))=0,\"\",\"=\")","v":""},null,{"$f":"IF(MOD(ABS(Y20),ABS(O20))=0,\"\",IF(O20*Y20<0,\"-\",\"\"))","v":""},null,null,null,null,null,null,null,{"$f":"IF(MOD(ABS(Y20),ABS(O20))=0,\"\",\"← 右辺の数÷\")","v":""},null,null,null,null,null,null,null,null,null,null,null,null,null,{"$f":"IF(MOD(ABS(Y20),ABS(O20))=0,\"\",\"x\")","v":""},null,{"$f":"IF(MOD(ABS(Y20),ABS(O20))=0,\"\",\"の係数\")","v":""},null,null,null,null,null,null,null,null,null,null,null,null,null,null,null,null,null,null,null,null,null,null,null,null,null,19,null,9,"-",{"$f":"INT((BX27+WEEKDAY(TODAY()))/2)+1","v":8},null,null,null,"9","-8",17,{"$f":"MOD(WEEKDAY(TODAY()),7)+11","v":17},"-7"]
[null,null,null,null,null,null,null,null,null,null,null,null,null,null,null,null,null,null,null,null,null,null,null,null,null,{"$f":"IF(MOD(ABS(Y20),ABS(O20))=0,\"\",ABS(O20))","v":""},null,null,null,null,null,null,null,null,null,null,null,null,null,null,null,null,null,null,null,null,null,null,null,null,null,null,null,null,null,null,null,null,null,null,null,null,null,null,null,null,null,null,null,null,null,null,null,20,"-",12,null,{"$f":"INT((BX28+WEEKDAY(TODAY()))/2)+3","v":12},null,null,null,"-12","12",-24,{"$f":"-MOD(WEEKDAY(TODAY()),7)-12","v":-18},"-11"]
[]
[null,null,null,null,null,null,null,null,null,null,null,null,null,null,null,null,null,null,null,null,null,null,null,null,null,{"$f":"IF(MOD(ABS(Y20),ABS(O20))=0,\"\",IF(GCD(Z26,Z28)=1,\"\",Z26/GCD(Z26,Z28)))","v":""},null,null,null,null,null,null,null,null,null,null,null,null,null,null,null,null,null,null,null,null,null,null,null,null,null,null,null,null,null,null,null,null,null,null,null,null,null,null,null,null,null,null,null,null,null,null,null,"-",null,null,null,null,null,null,null,{"$f":"IF(Q10=AP6,0,1)","v":1}]
[null,null,null,null,null,null,null,null,null,null,null,null,null,null,null,null,null,null,null,{"$f":"IF(MOD(ABS(Y20),ABS(O20))=0,\"\",IF(GCD(Z26,Z28)=1,\"\",\"x\"))","v":""},null,{"$f":"IF(MOD(ABS(Y20),ABS(O20))=0,\"\",IF(GCD(Z26,Z28)=1,\"\",\"=\"))","v":""},null,{"$f":"IF(MOD(ABS(Y20),ABS(O20))=0,\"\",IF(GCD(Z26,Z28)=1,\"\",X27))","v":""},null,null,null,null,null,null,null,{"$f":"IF(MOD(ABS(Y20),ABS(O20))=0,\"\",IF(GCD(Z26,Z28)=1,\"\",\"← \"&DBCS(GCD(Z26,Z28))&\"で約分して\"))","v":""},null,null,null,null,null,null,null,null,null,null,null,null,null,null,null,null,null,null,null,null,null,null,null,null,null,null,null,null,null,null,null,null,null,null,null,null,null,null,null,null,null,null,null,null,null,null,null,null,null,{"$f":"IF(ASC(U10&V9)=ASC(AW6&AY5),0,1)","v":0}]
[null,null,null,null,null,null,null,null,null,null,null,null,null,null,null,null,null,null,null,null,null,null,null,null,null,{"$f":"IF(MOD(ABS(Y20),ABS(O20))=0,\"\",IF(GCD(Z26,Z28)=1,\"\",Z28/GCD(Z26,Z28)))","v":""},null,null,null,null,null,null,null,null,null,null,null,null,null,null,null,null,null,null,null,null,null,null,null,null,null,null,null,null,null,null,null,null,null,null,null,null,null,null,null,null,null,null,null,null,null,null,null,null,null,null,null,null,null,null,null,{"$f":"IF(V11=AY7,0,1)","v":0}]
[null,null,null,null,null,null,null,null,null,null,null,null,null,null,null,null,null,null,null,null,null,null,null,null,null,null,null,null,null,null,null,null,null,null,null,null,null,null,null,null,null,null,null,null,null,null,null,null,null,null,null,null,null,null,null,null,null,null,null,null,null,null,null,null,null,null,null,null,null,null,null,null,null,null,null,null,null,null,null,null,null,{"$f":"SUM(CD30:CD32)","v":1}]